[Event "Late-Titled-Tuesday-Blitz-March-12-2024"]
[Site "Chess.com"]
[Date "2024.03.12"]
[Round "7"]
[White "Mikhail_Bryakin"]
[Black "ExtremeLearner"]
[Result "1/2-1/2"]
[WhiteElo "2742"]
[BlackElo "2582"]
[TimeControl "180+1"]
[EndTime "15:19:22 PDT"]
[Termination "Game drawn by stalemate"]

1. e4 {[%clk 0:02:59.6]} 1... c6 {[%clk 0:02:59.2]} 2. e5 {[%clk 0:02:54.1]}
2... g6 {[%clk 0:02:40.6]} 3. d4 {[%clk 0:02:53.7]} 3... Bg7 {[%clk 0:02:39.7]}
4. f4 {[%clk 0:02:53.8]} 4... Nh6 {[%clk 0:02:31.9]} 5. Nf3 {[%clk 0:02:52.1]}
5... d5 {[%clk 0:02:29.7]} 6. Be2 {[%clk 0:02:48.7]} 6... Bg4 {[%clk 0:02:26]}
7. Nc3 {[%clk 0:02:49.4]} 7... Nf5 {[%clk 0:02:24.1]} 8. Ng1 {[%clk 0:02:49]}
8... h5 {[%clk 0:02:19.2]} 9. g3 {[%clk 0:02:44.7]} 9... Qb6 {[%clk 0:02:12.9]}
10. Bxg4 {[%clk 0:02:16.2]} 10... hxg4 {[%clk 0:02:11.6]} 11. Nge2 {[%clk
0:02:16.9]} 11... e6 {[%clk 0:02:10.1]} 12. Na4 {[%clk 0:02:11.6]} 12... Qa5+
{[%clk 0:01:58.2]} 13. c3 {[%clk 0:02:11.3]} 13... Nd7 {[%clk 0:01:53.4]} 14.
Kf2 {[%clk 0:01:56.3]} 14... b5 {[%clk 0:01:25.7]} 15. Nc5 {[%clk 0:01:55.1]}
15... Nxc5 {[%clk 0:01:26.2]} 16. dxc5 {[%clk 0:01:56]} 16... b4 {[%clk
0:01:26.9]} 17. cxb4 {[%clk 0:01:39.7]} 17... Qxb4 {[%clk 0:01:27.8]} 18. Qc2
{[%clk 0:01:40.1]} 18... Bf8 {[%clk 0:01:21.7]} 19. Bd2 {[%clk 0:01:40.8]} 19...
Qxc5+ {[%clk 0:01:16.7]} 20. Qxc5 {[%clk 0:01:40.4]} 20... Bxc5+ {[%clk
0:01:17.6]} 21. Kg2 {[%clk 0:01:41.2]} 21... Be3 {[%clk 0:01:08]} 22. Be1 {[%clk
0:01:33.7]} 22... Kd7 {[%clk 0:01:05.4]} 23. h3 {[%clk 0:01:33.2]} 23... Bb6
{[%clk 0:01:01.4]} 24. Bd2 {[%clk 0:01:27.7]} 24... gxh3+ {[%clk 0:00:57.5]} 25.
Rxh3 {[%clk 0:01:28.6]} 25... Rxh3 {[%clk 0:00:56.6]} 26. Kxh3 {[%clk
0:01:29.5]} 26... Rh8+ {[%clk 0:00:56.1]} 27. Kg2 {[%clk 0:01:30.1]} 27... Be3
{[%clk 0:00:52.3]} 28. Be1 {[%clk 0:01:30.4]} 28... g5 {[%clk 0:00:49.2]} 29. g4
{[%clk 0:01:12.7]} 29... Nh6 {[%clk 0:00:28]} 30. fxg5 {[%clk 0:01:02.6]} 30...
Bxg5 {[%clk 0:00:26.3]} 31. Kf3 {[%clk 0:01:03]} 31... f6 {[%clk 0:00:21.4]} 32.
Bg3 {[%clk 0:00:55.8]} 32... Rf8 {[%clk 0:00:18.7]} 33. exf6 {[%clk 0:00:31.9]}
33... Rxf6+ {[%clk 0:00:18.4]} 34. Kg2 {[%clk 0:00:32.8]} 34... Nxg4 {[%clk
0:00:18.4]} 35. b4 {[%clk 0:00:24.3]} 35... Ne3+ {[%clk 0:00:18.4]} 36. Kg1
{[%clk 0:00:25]} 36... Nc4 {[%clk 0:00:14.6]} 37. a4 {[%clk 0:00:24]} 37... e5
{[%clk 0:00:12.9]} 38. Rd1 {[%clk 0:00:21.5]} 38... Ke6 {[%clk 0:00:12]} 39. b5
{[%clk 0:00:20.5]} 39... Be3+ {[%clk 0:00:12.4]} 40. Kh1 {[%clk 0:00:19.5]}
40... Rh6+ {[%clk 0:00:11.8]} 41. Kg2 {[%clk 0:00:19.7]} 41... Bb6 {[%clk
0:00:11.6]} 42. Rc1 {[%clk 0:00:17.4]} 42... Ne3+ {[%clk 0:00:11.5]} 43. Kf2
{[%clk 0:00:13.4]} 43... Ng4+ {[%clk 0:00:08.8]} 44. Kg2 {[%clk 0:00:13.5]}
44... Ne3+ {[%clk 0:00:09.3]} 45. Kf2 {[%clk 0:00:14.1]} 45... Nf5+ {[%clk
0:00:09.1]} 46. Kg2 {[%clk 0:00:13.9]} 46... Nxg3 {[%clk 0:00:09.8]} 47. Kxg3
{[%clk 0:00:14.3]} 47... c5 {[%clk 0:00:09.7]} 48. a5 {[%clk 0:00:09.9]} 48...
Rg6+ {[%clk 0:00:09.6]} 49. Kf3 {[%clk 0:00:09.7]} 49... Bxa5 {[%clk 0:00:10.1]}
50. Rxc5 {[%clk 0:00:10.4]} 50... Bb6 {[%clk 0:00:07.8]} 51. Rc6+ {[%clk
0:00:10.7]} 51... Kf5 {[%clk 0:00:07.7]} 52. Ng3+ {[%clk 0:00:11.3]} 52... Kg5
{[%clk 0:00:08.3]} 53. Rc8 {[%clk 0:00:11.6]} 53... Rf6+ {[%clk 0:00:08.5]} 54.
Ke2 {[%clk 0:00:11]} 54... Rf2+ {[%clk 0:00:09]} 55. Kd1 {[%clk 0:00:11.6]}
55... Kf4 {[%clk 0:00:08.8]} 56. Ne2+ {[%clk 0:00:11.3]} 56... Ke3 {[%clk
0:00:08.8]} 57. Rc3+ {[%clk 0:00:11.9]} 57... Ke4 {[%clk 0:00:09.2]} 58. Rh3
{[%clk 0:00:10.6]} 58... d4 {[%clk 0:00:09.1]} 59. Rh4+ {[%clk 0:00:09.7]} 59...
Kd5 {[%clk 0:00:09.6]} 60. Rh8 {[%clk 0:00:09.4]} 60... Ba5 {[%clk 0:00:09.6]}
61. Rh7 {[%clk 0:00:06.8]} 61... Rf1+ {[%clk 0:00:09.5]} 62. Kc2 {[%clk
0:00:07.3]} 62... Rf2 {[%clk 0:00:09.4]} 63. Kd1 {[%clk 0:00:07.9]} 63... d3
{[%clk 0:00:09.1]} 64. Rd7+ {[%clk 0:00:08.3]} 64... Kc4 {[%clk 0:00:09.1]} 65.
Ng3 {[%clk 0:00:04.4]} 65... Rd2+ {[%clk 0:00:08.9]} 66. Kc1 {[%clk 0:00:03.9]}
66... Rc2+ {[%clk 0:00:09.6]} 67. Kb1 {[%clk 0:00:04.1]} 67... Rg2 {[%clk
0:00:09.9]} 68. Ne4 {[%clk 0:00:04.6]} 68... Kxb5 {[%clk 0:00:08.8]} 69. Rxd3
{[%clk 0:00:04.2]} 69... Re2 {[%clk 0:00:08.3]} 70. Nd6+ {[%clk 0:00:03.5]}
70... Kc6 {[%clk 0:00:08.4]} 71. Nc4 {[%clk 0:00:03.7]} 71... Bc7 {[%clk
0:00:06.7]} 72. Rc3 {[%clk 0:00:04.3]} 72... Kb7 {[%clk 0:00:06.1]} 73. Rb3+
{[%clk 0:00:04.2]} 73... Kc8 {[%clk 0:00:06.3]} 74. Rh3 {[%clk 0:00:04.5]} 74...
Re4 {[%clk 0:00:06.3]} 75. Nb2 {[%clk 0:00:04.3]} 75... Rb4 {[%clk 0:00:06.6]}
76. Kc2 {[%clk 0:00:04.7]} 76... Rb6 {[%clk 0:00:07]} 77. Nc4 {[%clk 0:00:04.7]}
77... Rc6 {[%clk 0:00:07.6]} 78. Kb3 {[%clk 0:00:05.2]} 78... Kb7 {[%clk
0:00:07.7]} 79. Rh7 {[%clk 0:00:05.6]} 79... Ra6 {[%clk 0:00:06.8]} 80. Re7
{[%clk 0:00:05.5]} 80... Kc8 {[%clk 0:00:06.1]} 81. Nxe5 {[%clk 0:00:05.4]}
81... Bxe5 {[%clk 0:00:06.7]} 82. Rxe5 {[%clk 0:00:05.7]} 82... Rb6+ {[%clk
0:00:07.3]} 83. Ka4 {[%clk 0:00:06.3]} 83... Kb7 {[%clk 0:00:08.2]} 84. Re7+
{[%clk 0:00:06.6]} 84... Ka6 {[%clk 0:00:08.7]} 85. Re4 {[%clk 0:00:06.9]} 85...
Rh6 {[%clk 0:00:09.3]} 86. Rd4 {[%clk 0:00:07.3]} 86... Kb6 {[%clk 0:00:08.4]}
87. Re4 {[%clk 0:00:07.4]} 87... a6 {[%clk 0:00:08.9]} 88. Rf4 {[%clk
0:00:07.8]} 88... Rc6 {[%clk 0:00:09.5]} 89. Rg4 {[%clk 0:00:08]} 89... Rd6
{[%clk 0:00:10.1]} 90. Rh4 {[%clk 0:00:08.4]} 90... Rc6 {[%clk 0:00:10.6]} 91.
Rg4 {[%clk 0:00:08.9]} 91... Rc1 {[%clk 0:00:11]} 92. Rg6+ {[%clk 0:00:08.7]}
92... Rc6 {[%clk 0:00:11.9]} 93. Rxc6+ {[%clk 0:00:08.5]} 93... Kxc6 {[%clk
0:00:12.8]} 94. Ka5 {[%clk 0:00:09.4]} 94... Kb7 {[%clk 0:00:13.7]} 95. Ka4
{[%clk 0:00:10.3]} 95... Ka7 {[%clk 0:00:14.5]} 96. Ka5 {[%clk 0:00:10.9]} 96...
Kb7 {[%clk 0:00:14.9]} 97. Ka4 {[%clk 0:00:11.5]} 97... Kb6 {[%clk 0:00:15.8]}
98. Kb4 {[%clk 0:00:12]} 98... a5+ {[%clk 0:00:16.7]} 99. Ka4 {[%clk 0:00:12.8]}
99... Ka6 {[%clk 0:00:17.4]} 100. Ka3 {[%clk 0:00:13.7]} 100... Kb5 {[%clk
0:00:18.3]} 101. Kb3 {[%clk 0:00:14.2]} 101... a4+ {[%clk 0:00:19.2]} 102. Ka3
{[%clk 0:00:15.1]} 102... Ka5 {[%clk 0:00:20.1]} 103. Ka2 {[%clk 0:00:15.7]}
103... Kb4 {[%clk 0:00:21]} 104. Kb2 {[%clk 0:00:16.3]} 104... a3+ {[%clk
0:00:21.9]} 105. Ka2 {[%clk 0:00:17.2]} 105... Ka4 {[%clk 0:00:22.8]} 106. Ka1
{[%clk 0:00:17.9]} 106... Kb3 {[%clk 0:00:23.7]} 107. Kb1 {[%clk 0:00:18.7]}
107... a2+ {[%clk 0:00:24.6]} 108. Ka1 {[%clk 0:00:19.6]} 108... Ka3 {[%clk
0:00:25.3]} 1/2-1/2

[Event "Late-Titled-Tuesday-Blitz-March-12-2024"]
[Site "Chess.com"]
[Date "2024.03.12"]
[Round "8"]
[White "MathiasWomacka"]
[Black "PNEPaul"]
[Result "1-0"]
[WhiteElo "2535"]
[BlackElo "1954"]
[TimeControl "180+1"]
[EndTime "15:21:06 PDT"]
[Termination "MathiasWomacka won by resignation"]

1. e4 {[%clk 0:03:00.9]} 1... e5 {[%clk 0:02:59.1]} 2. Nf3 {[%clk 0:03:01.3]}
2... Nc6 {[%clk 0:02:59.1]} 3. Bb5 {[%clk 0:03:01.5]} 3... f5 {[%clk 0:02:58.8]}
4. d3 {[%clk 0:02:59.8]} 4... Nf6 {[%clk 0:02:58.2]} 5. O-O {[%clk 0:02:59.3]}
5... Be7 {[%clk 0:02:57.4]} 6. exf5 {[%clk 0:02:59.7]} 6... O-O {[%clk
0:02:56.2]} 7. Bxc6 {[%clk 0:02:55.8]} 7... dxc6 {[%clk 0:02:56.2]} 8. Nxe5
{[%clk 0:02:56.3]} 8... Bxf5 {[%clk 0:02:55.2]} 9. Bf4 {[%clk 0:02:52.4]} 9...
Bd6 {[%clk 0:02:53.3]} 10. Nd2 {[%clk 0:02:44.7]} 10... Nh5 {[%clk 0:02:42.9]}
11. Qxh5 {[%clk 0:02:42.5]} 11... Bg6 {[%clk 0:02:40.1]} 12. Qg4 {[%clk
0:02:28.1]} 1-0

[Event "Late-Titled-Tuesday-Blitz-March-12-2024"]
[Site "Chess.com"]
[Date "2024.03.12"]
[Round "8"]
[White "ExchangeAB"]
[Black "simaopdias"]
[Result "1-0"]
[WhiteElo "2498"]
[BlackElo "2274"]
[TimeControl "180+1"]
[EndTime "15:22:39 PDT"]
[Termination "ExchangeAB won by resignation"]

1. d4 {[%clk 0:03:00]} 1... d5 {[%clk 0:03:00]} 2. Nf3 {[%clk 0:02:59]} 2... Nf6
{[%clk 0:03:00.1]} 3. e3 {[%clk 0:02:58.7]} 3... e6 {[%clk 0:03:00.3]} 4. Nbd2
{[%clk 0:02:58.3]} 4... Be7 {[%clk 0:03:01.2]} 5. Bd3 {[%clk 0:02:57.9]} 5...
O-O {[%clk 0:03:01.9]} 6. c3 {[%clk 0:02:58.2]} 6... b6 {[%clk 0:03:01.7]} 7.
O-O {[%clk 0:02:58.6]} 7... Ba6 {[%clk 0:03:00.7]} 8. Bxa6 {[%clk 0:02:58.5]}
8... Nxa6 {[%clk 0:03:00.8]} 9. Qe2 {[%clk 0:02:59]} 9... Qc8 {[%clk 0:03:00.3]}
10. e4 {[%clk 0:02:58.4]} 10... dxe4 {[%clk 0:02:59.8]} 11. Nxe4 {[%clk
0:02:59.3]} 11... Nxe4 {[%clk 0:02:59.5]} 12. Qxe4 {[%clk 0:03:00.2]} 12... h6
{[%clk 0:02:57.8]} 13. Bf4 {[%clk 0:02:57.2]} 13... Bd6 {[%clk 0:02:55.2]} 14.
Rae1 {[%clk 0:02:55.6]} 14... Bxf4 {[%clk 0:02:52.2]} 15. Qxf4 {[%clk
0:02:56.5]} 15... c5 {[%clk 0:02:52.5]} 16. Re5 {[%clk 0:02:53.1]} 16... cxd4
{[%clk 0:02:50.9]} 17. Nxd4 {[%clk 0:02:54]} 17... Nc5 {[%clk 0:02:46.9]} 18.
Rh5 {[%clk 0:02:50.4]} 18... Nd7 {[%clk 0:02:39.3]} 19. Qg3 {[%clk 0:02:47.1]}
19... Kh7 {[%clk 0:02:31]} 20. Nf3 {[%clk 0:02:44.3]} 20... Nf6 {[%clk
0:02:27.1]} 21. Ng5+ {[%clk 0:02:24.4]} 21... Kg8 {[%clk 0:02:12.8]} 22. Rxh6
{[%clk 0:02:19.5]} 22... gxh6 {[%clk 0:02:05.8]} 23. Nxe6+ {[%clk 0:02:15.7]}
1-0

[Event "Late-Titled-Tuesday-Blitz-March-12-2024"]
[Site "Chess.com"]
[Date "2024.03.12"]
[Round "8"]
[White "JaackCamel"]
[Black "muchojogo"]
[Result "0-1"]
[WhiteElo "2199"]
[BlackElo "2542"]
[TimeControl "180+1"]
[EndTime "15:23:14 PDT"]
[Termination "muchojogo won by resignation"]

1. d4 {[%clk 0:03:00.9]} 1... Nf6 {[%clk 0:02:59.3]} 2. c4 {[%clk 0:03:00]} 2...
g6 {[%clk 0:02:59.3]} 3. Nc3 {[%clk 0:02:59.4]} 3... Bg7 {[%clk 0:03:00.2]} 4.
e4 {[%clk 0:02:58.9]} 4... O-O {[%clk 0:03:00.7]} 5. Nf3 {[%clk 0:02:58.3]} 5...
d6 {[%clk 0:03:01.3]} 6. Be2 {[%clk 0:02:57.9]} 6... e5 {[%clk 0:03:01.6]} 7.
Be3 {[%clk 0:02:57]} 7... exd4 {[%clk 0:03:00.6]} 8. Nxd4 {[%clk 0:02:56.4]}
8... Re8 {[%clk 0:03:01.5]} 9. f3 {[%clk 0:02:56]} 9... c6 {[%clk 0:03:01.9]}
10. Bf2 {[%clk 0:02:55.4]} 10... Na6 {[%clk 0:02:59.9]} 11. O-O {[%clk
0:02:52.2]} 11... Nc5 {[%clk 0:03:00]} 12. b4 {[%clk 0:02:46.4]} 12... Ne6
{[%clk 0:02:59.9]} 13. Rc1 {[%clk 0:02:32]} 13... Nh5 {[%clk 0:02:57.5]} 14. Qd2
{[%clk 0:02:13]} 14... Nxd4 {[%clk 0:02:53.7]} 15. Bxd4 {[%clk 0:02:12.4]} 15...
Nf4 {[%clk 0:02:54.6]} 16. Bxg7 {[%clk 0:02:02.9]} 16... Qg5 {[%clk 0:02:50.2]}
17. Qxf4 {[%clk 0:01:13.3]} 17... Qxf4 {[%clk 0:02:49.4]} 18. Bd4 {[%clk
0:01:09.7]} 18... Be6 {[%clk 0:02:43.3]} 19. a3 {[%clk 0:01:05.2]} 19... h5
{[%clk 0:02:40.8]} 20. g3 {[%clk 0:00:51.8]} 20... Qh6 {[%clk 0:02:40.3]} 21.
Nd1 {[%clk 0:00:46.9]} 21... Qxc1 {[%clk 0:02:39.3]} 0-1

[Event "Late-Titled-Tuesday-Blitz-March-12-2024"]
[Site "Chess.com"]
[Date "2024.03.12"]
[Round "8"]
[White "AlexeiShirov"]
[Black "GotCheeseCheckers"]
[Result "1-0"]
[WhiteElo "2873"]
[BlackElo "2507"]
[TimeControl "180+1"]
[EndTime "15:23:15 PDT"]
[Termination "AlexeiShirov won by resignation"]

1. e4 {[%clk 0:03:00.9]} 1... e5 {[%clk 0:02:57.3]} 2. Nf3 {[%clk 0:03:00.4]}
2... Nc6 {[%clk 0:02:58]} 3. Bc4 {[%clk 0:02:59.6]} 3... Nf6 {[%clk 0:02:57.6]}
4. Ng5 {[%clk 0:02:58.9]} 4... d5 {[%clk 0:02:57.9]} 5. exd5 {[%clk 0:02:58.8]}
5... Na5 {[%clk 0:02:57.8]} 6. Bb5+ {[%clk 0:02:58.7]} 6... c6 {[%clk 0:02:58]}
7. dxc6 {[%clk 0:02:58.9]} 7... bxc6 {[%clk 0:02:57.6]} 8. Bd3 {[%clk
0:02:58.7]} 8... Nd5 {[%clk 0:02:57.5]} 9. Nf3 {[%clk 0:02:56.6]} 9... Nf4
{[%clk 0:02:53.8]} 10. Bf1 {[%clk 0:02:53.8]} 10... Bc5 {[%clk 0:02:47.4]} 11.
d4 {[%clk 0:02:52.2]} 11... Bb6 {[%clk 0:02:41.3]} 12. Nxe5 {[%clk 0:02:47.8]}
12... Bxd4 {[%clk 0:01:46.8]} 13. Bxf4 {[%clk 0:02:46]} 13... Bxb2 {[%clk
0:01:47.4]} 14. Qxd8+ {[%clk 0:02:26.1]} 14... Kxd8 {[%clk 0:01:47.6]} 15. Nxf7+
{[%clk 0:02:24.9]} 15... Ke7 {[%clk 0:01:46.6]} 16. Nxh8 {[%clk 0:02:22.6]}
16... Be6 {[%clk 0:01:43.9]} 17. Bg5+ {[%clk 0:02:11.7]} 17... Kd7 {[%clk
0:01:42.1]} 18. Bd2 {[%clk 0:02:07.7]} 18... Bxa1 {[%clk 0:01:25.6]} 19. Bxa5
{[%clk 0:02:06.5]} 19... Bxa2 {[%clk 0:01:24.1]} 20. Bc3 {[%clk 0:02:02.8]}
20... Re8+ {[%clk 0:01:20.5]} 21. Kd2 {[%clk 0:02:01.3]} 21... Bxb1 {[%clk
0:01:19.9]} 22. Bxa1 {[%clk 0:01:59.5]} 22... Rxh8 {[%clk 0:01:20.8]} 1-0

[Event "Late-Titled-Tuesday-Blitz-March-12-2024"]
[Site "Chess.com"]
[Date "2024.03.12"]
[Round "8"]
[White "Yushko_Olga"]
[Black "The_Straightforward_Rook"]
[Result "0-1"]
[WhiteElo "2201"]
[BlackElo "2462"]
[TimeControl "180+1"]
[EndTime "15:23:43 PDT"]
[Termination "The_Straightforward_Rook won by resignation"]

1. d4 {[%clk 0:02:59.8]} 1... Nf6 {[%clk 0:02:56.6]} 2. c4 {[%clk 0:03:00.4]}
2... c5 {[%clk 0:02:56.5]} 3. d5 {[%clk 0:03:00.4]} 3... b5 {[%clk 0:02:57]} 4.
cxb5 {[%clk 0:03:01.3]} 4... a6 {[%clk 0:02:56.3]} 5. b6 {[%clk 0:03:01.9]} 5...
e6 {[%clk 0:02:55.9]} 6. Nc3 {[%clk 0:03:02.1]} 6... Nxd5 {[%clk 0:02:56.2]} 7.
Nxd5 {[%clk 0:03:02.1]} 7... exd5 {[%clk 0:02:57.1]} 8. Qxd5 {[%clk 0:03:02.3]}
8... Nc6 {[%clk 0:02:58]} 9. Nf3 {[%clk 0:03:01.6]} 9... Rb8 {[%clk 0:02:57.8]}
10. Bg5 {[%clk 0:03:00.5]} 10... Be7 {[%clk 0:02:52.4]} 11. Bxe7 {[%clk
0:02:59.7]} 11... Qxe7 {[%clk 0:02:50.9]} 12. e3 {[%clk 0:02:57.8]} 12... Rxb6
{[%clk 0:02:50.4]} 13. Bc4 {[%clk 0:02:54.5]} 13... Nb4 {[%clk 0:02:46.1]} 14.
Qd2 {[%clk 0:02:53.8]} 14... d5 {[%clk 0:02:46]} 15. Bxd5 {[%clk 0:02:43.2]}
15... Rd6 {[%clk 0:02:44.8]} 16. Qc3 {[%clk 0:02:06.3]} 16... Nxd5 {[%clk
0:02:31.7]} 17. Qxg7 {[%clk 0:02:04.3]} 17... Qf6 {[%clk 0:02:25.8]} 18. Qg3
{[%clk 0:01:58.2]} 18... Kf8 {[%clk 0:02:15.7]} 19. O-O {[%clk 0:01:45.5]} 19...
Rg8 {[%clk 0:02:14.6]} 20. Qe5 {[%clk 0:01:43.2]} 20... Qxe5 {[%clk 0:02:05.7]}
21. Nxe5 {[%clk 0:01:44.1]} 21... Bb7 {[%clk 0:02:05.6]} 22. Rac1 {[%clk
0:01:42.3]} 22... Nxe3 {[%clk 0:02:00.9]} 23. fxe3 {[%clk 0:01:34.6]} 23...
Rxg2+ {[%clk 0:02:00.4]} 24. Kh1 {[%clk 0:01:35.1]} 24... Rg3+ {[%clk 0:01:55]}
25. Nf3 {[%clk 0:01:31.2]} 25... Bxf3+ {[%clk 0:01:46.8]} 26. Rxf3 {[%clk
0:01:26.1]} 26... Rxf3 {[%clk 0:01:47.7]} 27. Rxc5 {[%clk 0:01:26.2]} 27... Rxe3
{[%clk 0:01:48.4]} 0-1

[Event "Late-Titled-Tuesday-Blitz-March-12-2024"]
[Site "Chess.com"]
[Date "2024.03.12"]
[Round "8"]
[White "only_strong_moves"]
[Black "nindjaxx8"]
[Result "1-0"]
[WhiteElo "2566"]
[BlackElo "2675"]
[TimeControl "180+1"]
[EndTime "15:23:46 PDT"]
[Termination "only_strong_moves won by resignation"]

1. Nc3 {[%clk 0:03:00.9]} 1... d5 {[%clk 0:02:57.6]} 2. e4 {[%clk 0:03:00.4]}
2... dxe4 {[%clk 0:02:55.6]} 3. Nxe4 {[%clk 0:03:01]} 3... Nf6 {[%clk
0:02:54.9]} 4. Nxf6+ {[%clk 0:02:57.6]} 4... exf6 {[%clk 0:02:53.1]} 5. d4
{[%clk 0:02:53.9]} 5... Bd6 {[%clk 0:02:53]} 6. c3 {[%clk 0:02:54.1]} 6... O-O
{[%clk 0:02:52.1]} 7. Bd3 {[%clk 0:02:54.2]} 7... Nc6 {[%clk 0:02:49.4]} 8. Qc2
{[%clk 0:02:52.1]} 8... h6 {[%clk 0:02:47.7]} 9. Ne2 {[%clk 0:02:51.1]} 9... Re8
{[%clk 0:02:45.7]} 10. Be3 {[%clk 0:02:48.3]} 10... a5 {[%clk 0:02:42.3]} 11.
O-O {[%clk 0:02:40.8]} 11... Be6 {[%clk 0:02:32.2]} 12. Rad1 {[%clk 0:02:31.8]}
12... a4 {[%clk 0:02:28.9]} 13. Qb1 {[%clk 0:02:23.1]} 13... Ne7 {[%clk
0:02:18.9]} 14. c4 {[%clk 0:02:19.6]} 14... c6 {[%clk 0:02:02.5]} 15. Nf4 {[%clk
0:02:17.7]} 15... Qd7 {[%clk 0:01:54.3]} 16. Rfe1 {[%clk 0:02:12.7]} 16... Bf5
{[%clk 0:01:47.8]} 17. Nh5 {[%clk 0:02:02.3]} 17... Bxd3 {[%clk 0:01:39.5]} 18.
Qxd3 {[%clk 0:02:03.2]} 18... Ng6 {[%clk 0:00:58.1]} 19. h3 {[%clk 0:01:45]}
19... Qg4 {[%clk 0:00:59]} 20. hxg4 {[%clk 0:01:45]} 1-0

[Event "Late-Titled-Tuesday-Blitz-March-12-2024"]
[Site "Chess.com"]
[Date "2024.03.12"]
[Round "8"]
[White "ChainedDowntohell"]
[Black "IPAchess"]
[Result "1-0"]
[WhiteElo "2542"]
[BlackElo "2358"]
[TimeControl "180+1"]
[EndTime "15:23:54 PDT"]
[Termination "ChainedDowntohell won by resignation"]

1. d4 {[%clk 0:02:53.2]} 1... d5 {[%clk 0:03:00.1]} 2. Nf3 {[%clk 0:02:52.3]}
2... Nf6 {[%clk 0:02:59.7]} 3. Bf4 {[%clk 0:02:50.5]} 3... e6 {[%clk 0:02:55]}
4. e3 {[%clk 0:02:50.2]} 4... Bd6 {[%clk 0:02:55.2]} 5. Nbd2 {[%clk 0:02:48.3]}
5... O-O {[%clk 0:02:54.1]} 6. Bd3 {[%clk 0:02:47.9]} 6... c5 {[%clk 0:02:54.4]}
7. c3 {[%clk 0:02:46.7]} 7... Qc7 {[%clk 0:02:55]} 8. Bg5 {[%clk 0:02:40.3]}
8... Nbd7 {[%clk 0:02:53.9]} 9. Qa4 {[%clk 0:02:35.2]} 9... h6 {[%clk
0:02:51.7]} 10. Bh4 {[%clk 0:02:33.8]} 10... a6 {[%clk 0:02:47.4]} 11. O-O
{[%clk 0:02:22.7]} 11... b5 {[%clk 0:02:47.7]} 12. Qc2 {[%clk 0:02:16.7]} 12...
Bb7 {[%clk 0:02:48.3]} 13. Rfe1 {[%clk 0:02:07.8]} 13... Ne4 {[%clk 0:02:44.7]}
14. Nxe4 {[%clk 0:02:05]} 14... dxe4 {[%clk 0:02:45.6]} 15. Bxe4 {[%clk
0:02:05.1]} 15... cxd4 {[%clk 0:02:39]} 16. cxd4 {[%clk 0:01:56.3]} 16... Bxe4
{[%clk 0:02:29.3]} 17. Qxe4 {[%clk 0:01:55.8]} 17... Rac8 {[%clk 0:02:29.9]} 18.
Bg3 {[%clk 0:01:53.4]} 18... Bxg3 {[%clk 0:02:28.6]} 19. hxg3 {[%clk 0:01:53.3]}
19... Qc2 {[%clk 0:02:26.7]} 20. Qxc2 {[%clk 0:01:52.3]} 20... Rxc2 {[%clk
0:02:26.2]} 21. Rab1 {[%clk 0:01:51.1]} 21... Rfc8 {[%clk 0:02:26.6]} 22. Red1
{[%clk 0:01:48.1]} 22... Nf6 {[%clk 0:02:24.5]} 23. Ne1 {[%clk 0:01:48]} 23...
R2c4 {[%clk 0:02:19.9]} 24. Kf1 {[%clk 0:01:45.8]} 24... b4 {[%clk 0:02:12.7]}
25. Ke2 {[%clk 0:01:44.5]} 25... a5 {[%clk 0:02:13.1]} 26. f3 {[%clk 0:01:43.3]}
26... Kf8 {[%clk 0:02:12.1]} 27. Kd2 {[%clk 0:01:39.5]} 27... Ke7 {[%clk
0:02:06]} 28. Rbc1 {[%clk 0:01:38.8]} 28... g5 {[%clk 0:02:00.8]} 29. g4 {[%clk
0:01:36.4]} 29... h5 {[%clk 0:01:59.5]} 30. gxh5 {[%clk 0:01:35.2]} 30... Nxh5
{[%clk 0:02:00.4]} 31. Nd3 {[%clk 0:01:34.2]} 31... Rxc1 {[%clk 0:01:54.3]} 32.
Rxc1 {[%clk 0:01:32.5]} 32... Rg8 {[%clk 0:01:52.9]} 33. g4 {[%clk 0:01:30.4]}
33... Ng3 {[%clk 0:01:49]} 34. Rg1 {[%clk 0:01:27.6]} 1-0

[Event "Late-Titled-Tuesday-Blitz-March-12-2024"]
[Site "Chess.com"]
[Date "2024.03.12"]
[Round "8"]
[White "carloseduar100"]
[Black "SamuraisOfChess"]
[Result "0-1"]
[WhiteElo "2335"]
[BlackElo "2574"]
[TimeControl "180+1"]
[EndTime "15:24:04 PDT"]
[Termination "SamuraisOfChess won by resignation"]

1. e4 {[%clk 0:03:00.4]} 1... Nf6 {[%clk 0:03:00.7]} 2. e5 {[%clk 0:03:00.5]}
2... Nd5 {[%clk 0:03:01.1]} 3. c4 {[%clk 0:03:01]} 3... Nb6 {[%clk 0:03:01.9]}
4. c5 {[%clk 0:03:01.5]} 4... Nd5 {[%clk 0:03:01.5]} 5. Nc3 {[%clk 0:03:01.9]}
5... e6 {[%clk 0:02:57.7]} 6. Bc4 {[%clk 0:03:00.6]} 6... Nxc3 {[%clk
0:02:56.7]} 7. dxc3 {[%clk 0:03:00.9]} 7... Bxc5 {[%clk 0:02:57]} 8. Qg4 {[%clk
0:03:01.4]} 8... Bf8 {[%clk 0:02:55.3]} 9. Nf3 {[%clk 0:02:59.8]} 9... d5 {[%clk
0:02:55.4]} 10. exd6 {[%clk 0:02:58.1]} 10... cxd6 {[%clk 0:02:55.5]} 11. Bg5
{[%clk 0:02:55.7]} 11... Qc7 {[%clk 0:02:55.2]} 12. O-O-O {[%clk 0:02:54.5]}
12... Nc6 {[%clk 0:02:53.5]} 13. h4 {[%clk 0:02:44.7]} 13... Bd7 {[%clk
0:02:52.4]} 14. h5 {[%clk 0:02:39.4]} 14... Ne7 {[%clk 0:02:41.9]} 15. Bf4
{[%clk 0:02:36.1]} 15... e5 {[%clk 0:02:41]} 16. Bxf7+ {[%clk 0:01:58.9]} 16...
Kxf7 {[%clk 0:02:40]} 17. Ng5+ {[%clk 0:01:59.1]} 17... Ke8 {[%clk 0:02:39.8]}
18. Ne6 {[%clk 0:01:59]} 18... Qc4 {[%clk 0:02:31.5]} 19. Rxd6 {[%clk 0:01:57]}
19... Bxe6 {[%clk 0:02:27.3]} 20. Qxe6 {[%clk 0:01:51]} 20... Qxf4+ {[%clk
0:02:27.2]} 21. Kb1 {[%clk 0:01:51.3]} 21... Qf5+ {[%clk 0:02:27.2]} 22. Qxf5
{[%clk 0:01:50.3]} 22... Nxf5 {[%clk 0:02:27.4]} 23. Re6+ {[%clk 0:01:51.2]}
23... Kf7 {[%clk 0:02:24]} 24. Rxe5 {[%clk 0:01:52.1]} 24... Kf6 {[%clk
0:02:24.4]} 25. Rhe1 {[%clk 0:01:51.8]} 25... Nd6 {[%clk 0:02:13.3]} 26. f4
{[%clk 0:01:50.3]} 26... Kf7 {[%clk 0:02:13]} 27. g4 {[%clk 0:01:50.3]} 27...
Re8 {[%clk 0:02:12.7]} 28. Kc2 {[%clk 0:01:43.8]} 28... Rxe5 {[%clk 0:02:12.3]}
29. Rxe5 {[%clk 0:01:44.1]} 29... Be7 {[%clk 0:02:12.1]} 30. b4 {[%clk
0:01:43.8]} 30... Rc8 {[%clk 0:02:11.2]} 31. Kb3 {[%clk 0:01:42.5]} 31... Bf6
{[%clk 0:02:11]} 32. Re3 {[%clk 0:01:41.5]} 32... Nb5 {[%clk 0:02:11.1]} 33. c4
{[%clk 0:01:39.1]} 33... Nd4+ {[%clk 0:02:11.5]} 34. Ka4 {[%clk 0:01:39.4]}
34... Rxc4 {[%clk 0:02:10.2]} 35. a3 {[%clk 0:01:39.8]} 35... b5+ {[%clk
0:01:57.1]} 36. Ka5 {[%clk 0:01:38.9]} 36... Rc6 {[%clk 0:01:57.9]} 0-1